bitfinex-derivatives/quotes_BNBF0:USTF0_20250424
["timestamp","ask_amount","ask_price","bid_price","bid_amount"]
[1745524290499,1.27438481,600.06,598.34,0.30669054]
[1745524290695,1.27438481,600.06,598.36,0.30669054]
[1745524290893,1.27438481,600.06,598.37,0.30669054]
[1745524291095,0.29053264,600.05,598.33,0.30669054]
[1745524291399,0.29053264,600.05,598.34,0.30669054]
[1745524291600,0.29053264,600.05,598.33,0.30669054]
[1745524291799,0.29053264,600.05,598.34,0.30669054]
[1745524292095,0.29053264,600.05,598.35,0.30669054]
[1745524292299,0.29053264,600.05,598.34,0.30669054]
[1745524292599,0.29053264,600.05,598.35,0.30669054]
[1745524292800,0.29053264,600.05,598.34,0.30669054]
[1745524293001,0.29053264,600.05,598.35,0.30669054]
[1745524293301,0.29053264,600.05,598.36,0.30669054]
[1745524293601,0.29053264,600.05,598.37,0.30669054]
[1745524293798,1.27438481,600.07,598.34,0.30669054]
[1745524293998,0.29053143,600.04,598.35,0.30669054]
[1745524294202,0.29053143,600.04,598.33,0.29053143]
[1745524294501,0.29053143,600.04,598.34,0.30669054]
[1745524295801,0.29053143,600.04,598.33,0.29053143]
[1745524296001,0.29053143,600.04,598.34,0.30669703]
[1745524296604,1.27438481,600.07,598.34,0.30669703]
[1745524296804,1.27438481,600.07,598.33,0.30669703]
[1745524297105,0.29053264,600.06,598.34,0.30669703]
[1745524297305,0.29053264,600.06,598.33,0.29053264]
[1745524297505,0.29053264,600.06,598.34,0.30669691]
[1745524297702,1.27438481,599.94,598.38,1.05820463]
[1745524297901,1.27438481,599.94,598.39,0.30669691]
[1745524299908,1.27438481,600.15,598.39,0.30669691]
[1745524300107,0.29054113,599.93,598.33,0.29054113]
[1745524300307,1.27438481,600.15,598.34,0.30669691]
[1745524300509,1.27438481,600.15,598.35,0.3067068]
[1745524300709,1.27438481,600.15,598.36,0.3067068]
[1745524300906,1.27438481,600.15,598.34,0.3067068]
[1745524301111,0.29052173,600.14,598.35,0.3067068]
[1745524301309,0.29052173,600.14,598.34,0.3067068]
[1745524302011,0.29052173,600.14,598.33,0.29054113]
[1745524302212,0.29052173,600.14,598.34,0.30669686]
[1745524302712,1.27438481,600.18,598.34,0.30669686]
[1745524303006,0.29051809,600.13,598.35,0.30669686]
[1745524303212,0.29051809,600.13,598.32,0.30669686]
[1745524303411,0.29051809,600.13,598.33,0.30669686]
[1745524303611,0.29051809,600.13,598.31,0.997]
[1745524303911,0.29051809,600.13,598.32,0.30669686]
[1745524304108,0.29051809,600.13,598.32,0.59721738]
[1745524304312,0.29051809,600.13,598.33,0.30669686]
[1745524305413,0.29051809,600.13,598.32,0.29052052]
[1745524305610,0.29051809,600.13,598.31,0.997]
[1745524305909,1.27438481,600.23,598.31,0.997]
[1745524306114,1.27438481,600.23,598.32,0.30670551]
[1745524306915,0.29050718,600.22,598.33,0.30667251]
[1745524308415,0.29050718,600.22,598.32,0.29050718]
[1745524308615,0.29050718,600.22,598.33,0.30667107]
[1745524308914,1.27438481,600.28,598.33,0.30667107]
[1745524309114,1.27438481,600.28,598.32,0.30667107]
[1745524309312,1.27438481,600.28,598.33,0.30667107]
[1745524309516,1.27438481,600.28,598.32,0.30667107]
[1745524309716,1.27438481,600.28,598.33,0.30667107]
[1745524309916,0.29050111,600.27,598.32,0.29050111]
[1745524310116,0.29050111,600.27,598.33,0.30666665]
[1745524311215,1.27438481,600.23,598.33,0.30666665]
[1745524311619,1.27438481,600.23,598.34,0.30665161]
[1745524311816,1.27438481,600.23,598.35,0.30665161]
[1745524312018,0.29049505,600.22,598.36,0.30665161]
[1745524312220,0.29049505,600.22,598.33,0.30665161]
[1745524312519,0.29049505,600.22,598.34,0.30665161]
[1745524312720,0.29049505,600.22,598.33,0.30665161]
[1745524313119,0.29049505,600.22,598.32,0.29049505]
[1745524313320,0.29049505,600.22,598.33,0.30665161]
[1745524314223,0.29049505,600.22,598.33,1.36485624]
[1745524314520,0.29049505,600.22,598.34,0.30665161]
[1745524314721,1.27438481,600.24,598.34,0.30665161]
[1745524315022,0.29049626,600.21,598.34,0.30665161]
[1745524316722,0.29049626,600.21,598.36,1.05820463]
[1745524316916,0.29049626,600.21,598.37,0.30665161]
[1745524317622,1.27438481,600.24,598.37,0.30665161]
[1745524318122,0.29049263,600.23,598.37,0.30665161]
[1745524319328,0.29049263,600.23,598.35,0.29049263]
[1745524319329,1.27438481,600.17,598.38,1.05820463]
[1745524319529,1.27438481,600.17,598.39,0.30665578]
[1745524322035,1.27438481,600.07,598.43,1.05820463]
[1745524322227,1.27438481,600.07,598.44,0.30665578]
[1745524323529,1.27438481,600.07,598.43,1.05820463]
[1745524323833,1.27438481,600.07,598.44,0.30665668]
[1745524324836,1.27438481,599.95,598.44,0.30665668]
[1745524326237,1.27438481,599.95,598.45,1.419]
[1745524326439,1.27438481,599.95,598.46,0.30665668]
[1745524326633,1.27438481,599.96,598.45,1.419]
[1745524327840,1.27438481,599.96,598.46,1.329]
[1745524329439,0.2904902,600.0,598.46,1.329]
[1745524329640,1.27438481,600.85,598.46,1.329]
[1745524329841,1.27438481,600.85,598.47,1.173]
[1745524330136,0.29037991,600.0,598.47,1.173]
[1745524330341,1.27438481,600.85,598.47,1.173]
[1745524331041,0.29037749,600.84,598.47,1.173]
[1745524331537,0.29037749,600.84,598.48,1.39902025]
[1745524331741,0.29037749,600.84,598.49,0.29402025]
[1745524332843,0.29037749,600.84,598.48,1.105]
[1745524333036,0.29037749,600.84,598.49,0.30656687]
[1745524334446,0.29037749,600.84,598.48,1.105]
[1745524334745,1.27438481,600.57,598.49,0.30656716]
[1745524336046,1.27438481,600.57,598.48,1.105]
[1745524336248,1.27438481,600.57,598.49,0.30656719]
[1745524336846,1.27438481,600.57,598.48,1.105]
[1745524337147,0.29038718,600.56,598.49,0.3065669]
[1745524337648,0.29038718,600.56,598.48,1.105]
[1745524337946,0.29038718,600.56,598.49,0.3065669]
[1745524339247,0.29038718,600.56,598.48,1.105]
[1745524339448,0.29038718,600.56,598.49,0.30656719]
[1745524339449,1.27438481,600.48,598.49,0.30656719]
[1745524341548,1.27438481,600.49,598.49,0.30656719]
[1745524342048,0.29039688,600.48,598.49,0.30656719]
[1745524342349,0.29039688,600.48,598.48,1.105]
[1745524342543,0.29039688,600.48,598.49,0.30656716]
[1745524343848,0.29039688,600.48,598.48,1.105]
[1745524344048,0.29039688,600.48,598.49,0.3065669]
[1745524344343,1.27438481,600.26,598.49,0.3065669]
[1745524345049,0.29042475,600.25,598.49,0.3065669]
[1745524345242,0.29042475,600.25,598.48,1.39542475]
[1745524347049,0.29042475,600.25,598.49,0.30658731]
[1745524347648,1.27438481,600.77,598.49,0.30658731]
[1745524347846,0.29036295,600.24,598.49,0.30658731]
[1745524348244,1.27438481,600.77,598.49,0.30658731]
[1745524348443,1.27438481,600.77,598.48,1.39536295]
[1745524348649,1.27438481,600.77,598.49,0.30657335]
[1745524349349,1.27438481,600.43,598.49,0.30657335]
[1745524349949,0.29040415,600.42,598.49,0.30657335]
[1745524350150,0.29040415,600.42,598.5,0.30657652]
[1745524350449,0.29040415,600.42,598.49,0.30657652]
[1745524350644,0.29040415,600.42,598.5,0.30657652]
[1745524350850,1.27438481,600.43,598.49,0.30657652]
[1745524351050,1.27438481,600.43,598.5,0.30657652]
[1745524351250,1.27438481,600.43,598.5,1.376]
[1745524351451,1.27438481,600.43,598.51,0.30657652]
[1745524351653,1.27438481,600.43,598.5,1.376]
[1745524351852,1.27438481,600.43,598.51,0.30657601]
[1745524352053,0.29040172,600.42,598.51,0.30657601]
[1745524352255,1.27438481,600.36,598.51,0.30657601]
[1745524353961,0.2904102,600.35,598.51,0.30657601]
[1745524354563,0.2904102,600.35,598.52,1.097]
[1745524354961,1.56479501,600.35,598.53,0.30657549]
[1745524356665,1.27438481,600.35,598.53,0.30657549]
[1745524357063,1.27438481,600.58,598.53,0.30657549]
[1745524357965,0.29036901,600.57,598.52,1.097]
[1745524358165,0.29036901,600.57,598.53,0.30656421]
[1745524359460,0.29036901,600.57,598.52,1.097]
[1745524359661,1.27438481,600.58,598.53,0.30656421]
[1745524359867,1.27438481,600.55,598.53,0.30656421]
[1745524362568,0.29036901,600.56,598.53,0.30656421]
[1745524362569,1.56475382,600.56,598.53,0.30656421]
[1745524362867,1.27438481,600.56,598.54,0.30656418]
[1745524363063,0.29037143,600.55,598.55,0.30656418]
[1745524363266,0.29037143,600.55,598.56,0.30656418]
[1745524363462,0.29037143,600.55,598.57,0.30656418]
[1745524363667,0.29037143,600.55,598.53,0.30656418]
[1745524363968,0.29037143,600.55,598.54,0.30656418]
[1745524364169,0.29037143,600.55,598.53,0.30656418]
[1745524365573,1.27438481,600.5,598.53,0.30656418]
[1745524365763,1.27438481,600.5,598.52,1.38737143]
[1745524365967,1.27438481,600.5,598.53,0.30656418]
[1745524367371,1.27438481,600.5,598.52,1.38737143]
[1745524367569,1.27438481,600.5,598.53,0.30656447]
[1745524368475,1.27438481,600.11,598.53,0.30656447]
[1745524368674,1.27438481,600.11,598.67,1.05820463]
[1745524368873,1.27438481,600.11,598.68,0.30656447]
[1745524369173,1.27438481,600.11,598.69,0.30656257]
[1745524369373,1.27438481,600.11,598.7,0.30656257]
[1745524369573,1.27438481,600.11,598.68,0.30656257]
[1745524369773,1.27438481,600.11,598.69,0.30656257]
[1745524370073,1.27438481,600.11,598.7,0.30656257]
[1745524370269,1.27438481,600.11,598.68,0.30656257]
[1745524370472,1.27438481,600.11,598.69,0.30656257]
[1745524370675,1.27438481,600.11,598.68,0.30656257]
[1745524370875,1.27438481,600.11,598.69,0.30656257]
[1745524371072,1.27438481,600.11,598.7,0.30656257]
[1745524371272,1.27438481,600.11,598.68,0.30656257]
[1745524371476,0.29042596,600.15,598.69,0.30656257]
[1745524371676,0.29042596,600.15,598.55,0.30656257]
[1745524372076,0.29042596,600.15,598.54,1.05820463]
[1745524372277,1.27438481,600.39,598.55,0.30653573]
[1745524372978,0.29037264,600.38,598.55,0.30653573]
[1745524373678,0.29037264,600.38,598.54,1.05820463]
[1745524373877,0.29037264,600.38,598.55,0.30651761]
[1745524374680,1.27438481,600.5,598.56,1.05820463]
[1745524374881,1.27438481,600.5,598.57,0.30651761]
[1745524375980,0.2903569,600.49,598.57,0.30651761]
[1745524376978,0.2903569,600.49,598.58,1.445]
[1745524377182,0.2903569,600.49,598.59,0.30651761]
[1745524377676,1.27438481,600.5,598.59,0.30651761]
[1745524377881,1.27438481,600.52,598.62,1.05820463]
[1745524378079,1.27438481,600.52,598.63,0.30651761]
[1745524378982,0.29034721,600.51,598.63,0.30651761]
[1745524379183,0.29034721,600.51,598.64,1.472]
[1745524379481,0.29034721,600.51,598.65,0.30651761]
[1745524380777,1.27438481,600.54,598.65,0.30651761]
[1745524381084,0.29034236,600.5,598.65,0.30651761]
[1745524382883,1.27438481,600.47,598.66,0.30650859]
[1745524383077,1.27438481,600.47,598.65,1.54450859]
[1745524383275,1.27438481,600.47,598.66,0.30650859]
[1745524384183,0.29034963,600.46,598.66,0.30650859]
[1745524384384,0.29034963,600.46,598.65,1.238]
[1745524384584,0.29034963,600.46,598.66,0.30650073]
[1745524385686,1.56473444,600.46,598.66,0.30650073]
[1745524386683,1.27438481,600.46,598.66,0.30650073]
[1745524387083,0.29035084,600.45,598.66,0.30650073]
[1745524387481,0.29035084,600.45,598.65,2.29620463]
[1745524387685,0.29035084,600.45,598.66,0.30649829]
[1745524388880,0.29035084,600.45,598.66,1.32049829]
[1745524389085,0.29035084,600.45,598.67,0.30649829]
[1745524389684,1.27438481,600.62,598.67,0.30649829]
[1745524390086,0.29033025,600.44,598.67,0.30649829]
[1745524390288,1.27438481,600.62,598.67,0.30649829]
[1745524391089,0.29033025,600.61,598.67,1.24249829]
[1745524391282,0.29033025,600.61,598.68,0.30649829]
[1745524391587,1.27438481,600.59,598.68,0.30649829]
[1745524392488,1.27438481,600.59,598.67,0.936]
[1745524392685,1.27438481,600.59,598.68,0.30649697]
[1745524393089,0.29033267,600.58,598.68,0.30649697]
[1745524394990,1.56471748,600.58,598.68,0.30649697]
[1745524395690,1.27438481,600.58,598.68,0.30649697]
[1745524396093,0.29033388,600.57,598.68,0.30649697]
[1745524396892,0.29033388,600.57,598.67,1.22633388]
[1745524397495,1.27438481,600.37,598.7,1.05820463]
[1745524400000,0.29033631,600.36,598.7,1.05820463]
[1745524400700,0.29033631,600.36,598.71,0.30644466]
[1745524401096,0.29033631,600.36,598.72,0.30644466]
[1745524401298,0.29033631,600.36,598.69,0.30644466]
[1745524401599,0.29033631,600.36,598.7,0.30644466]
[1745524401792,1.27438481,601.64,598.69,0.30644466]
[1745524401994,1.27438481,601.64,598.7,0.30644466]
[1745524402197,0.29018499,600.35,598.69,0.29018499]
[1745524402397,1.27438481,601.64,598.7,0.30644466]
[1745524403300,1.27438481,601.64,598.71,1.084]
[1745524403497,1.27438481,601.64,598.72,0.30644466]
[1745524403701,0.29018136,601.63,598.72,0.30644466]
[1745524404102,1.27438481,600.68,598.72,0.30644466]
[1745524405006,0.29029755,600.67,598.72,0.30644466]
[1745524407704,1.27438481,600.72,598.72,0.30644466]
[1745524408000,0.2903024,600.66,598.72,0.30644466]
[1745524408500,0.2903024,600.66,598.71,1.084]
[1745524408699,0.2903024,600.66,598.72,0.30648252]
[1745524410107,0.2903024,600.66,598.71,1.3743024]
[1745524410306,0.2903024,600.66,598.72,0.3064785]
[1745524410705,1.27438481,600.82,598.72,0.3064785]
[1745524410907,1.27438481,600.82,598.73,0.956]
[1745524411205,1.27438481,600.82,598.74,0.3064785]
[1745524412007,1.27438481,600.78,598.74,0.3064785]
[1745524413307,1.27438481,600.78,598.73,0.956]
[1745524413507,1.27438481,600.78,598.74,0.30647652]
[1745524414908,0.29029271,600.77,598.74,0.30647652]
[1745524415510,1.27438481,600.73,598.74,0.30647652]
[1745524417112,0.29029877,600.72,598.74,0.30647652]
[1745524418216,1.27438481,600.7,598.74,0.30647652]
[1745524420018,0.2903024,600.69,598.74,0.30647652]
[1745524420820,1.27438481,600.44,598.74,0.30647652]
[1745524423220,1.27438481,600.47,598.74,0.30647652]
[1745524424022,1.27438481,600.47,598.75,1.449]
[1745524424223,1.27438481,600.47,598.76,0.30647652]
[1745524425822,1.27438481,600.5,598.75,1.449]
[1745524426022,1.27438481,600.5,598.76,0.30647793]
[1745524427418,1.27438481,600.5,598.75,1.449]
[1745524427624,1.27438481,600.5,598.76,0.30647851]
[1745524428018,0.2903242,600.49,598.76,0.30647851]
[1745524428724,1.27438481,600.5,598.76,0.30647851]
[1745524428922,0.2903242,600.48,598.75,1.7393242]
[1745524429222,0.2903242,600.48,598.77,1.289]
[1745524429422,0.2903242,600.48,598.78,0.30647793]
[1745524430525,0.2903242,600.48,598.77,1.289]
[1745524430823,0.2903242,600.48,598.78,0.30647196]
[1745524431724,1.27438481,600.55,598.78,0.30647196]
[1745524433024,0.29030845,600.54,598.78,0.30647196]
[1745524433624,0.29030845,600.54,598.77,1.289]
[1745524433820,0.29030845,600.54,598.78,0.30647196]
[1745524434022,1.27438481,600.42,598.78,0.30647196]
[1745524435024,0.2903242,600.41,598.78,0.30647196]
[1745524435226,0.2903242,600.41,598.79,0.30647167]
[1745524435526,0.2903242,600.41,598.8,0.30647167]
[1745524435726,0.2903242,600.41,598.78,0.30647167]
[1745524435927,0.2903242,600.41,598.83,1.05820463]
[1745524436229,0.2903242,600.41,598.84,0.30647167]
[1745524438926,0.2903242,600.41,598.84,1.3646763]
[1745524439130,0.2903242,600.41,598.85,0.30647167]
[1745524439931,0.2903242,600.41,598.84,1.05820463]
[1745524440630,1.27438481,600.46,598.84,1.05820463]
[1745524440932,0.29031087,600.4,598.84,1.05820463]
[1745524441830,0.29031087,600.4,598.8,1.222]
[1745524443733,1.27438481,600.72,598.8,1.222]
[1745524444435,1.27438481,600.67,598.8,1.222]
[1745524444733,1.27438481,600.67,598.8,2.191]
[1745524444934,0.29029029,600.66,598.8,2.191]
[1745524446737,1.27438481,600.67,598.8,2.191]
[1745524446938,1.27438481,600.66,598.8,2.191]
[1745524448037,0.29028424,600.65,598.8,2.191]
[1745524449739,1.27438481,600.66,598.8,2.191]
[1745524449939,1.27438481,600.66,598.8,3.114]
[1745524450238,2.16822415,601.39,598.8,3.114]
[1745524450239,0.29027939,600.64,598.8,3.114]
[1745524452744,1.27438481,601.15,598.8,3.114]
[1745524453044,0.29022977,600.63,598.8,3.114]
[1745524453343,1.27438481,601.15,598.8,3.114]
[1745524454038,0.29022977,601.14,598.8,3.114]
[1745524455742,1.27438481,601.15,598.8,3.114]
[1745524456943,0.29022977,601.14,598.8,3.114]
[1745524458649,1.27438481,601.2,598.8,3.114]
[1745524458951,0.29022371,601.13,598.8,3.114]
[1745524459751,1.27438481,600.92,598.8,3.114]
[1745524462949,0.2902576,600.91,598.8,3.114]
[1745524464758,1.27438481,600.93,598.8,3.114]
[1745524465351,1.27438481,600.93,598.81,0.30644651]
[1745524465657,1.27438481,600.93,598.8,0.923]
[1745524465857,1.27438481,600.93,598.81,0.30644655]
[1745524466153,0.29025639,600.92,598.81,0.30644655]
[1745524467762,1.27438481,600.97,598.81,0.30644655]
[1745524468062,0.29025155,600.91,598.81,1.68044655]
[1745524468260,0.29025155,600.91,598.82,0.30644655]
[1745524469364,1.27438481,600.7,598.83,1.203]
[1745524469563,1.27438481,600.7,598.84,0.30644655]
[1745524469762,1.27438481,600.7,598.84,1.67844655]
[1745524469961,1.27438481,600.7,598.84,1.372]
[1745524471959,0.29027939,600.69,598.84,1.372]
[1745524472366,1.27438481,600.65,598.84,1.372]
[1745524474269,0.29028545,600.64,598.85,0.30645788]
[1745524476774,1.27438481,600.74,598.85,0.30645788]
[1745524476971,0.29028182,600.63,598.85,0.30645788]
[1745524477273,1.27438481,600.74,598.85,0.30645788]
[1745524477573,1.27438481,600.74,598.84,1.372]
[1745524478073,0.2902915,600.73,598.84,1.372]
[1745524478273,1.27438481,600.59,598.84,1.372]
[1745524480569,0.29031209,600.58,598.84,1.372]
[1745524482172,1.27438481,600.52,598.84,1.372]
[1745524482679,1.27438481,600.52,598.85,1.192]
[1745524483079,0.29032056,600.51,598.85,1.192]
[1745524484674,0.29032056,600.51,598.86,1.377]
[1745524485780,1.27438481,600.62,598.86,1.377]
[1745524486979,0.2903133,600.61,598.86,1.377]
[1745524487779,1.56469811,600.61,598.86,1.377]
[1745524488780,1.27438481,600.61,598.86,1.377]
[1745524489080,0.29031451,600.6,598.86,1.377]
[1745524489279,0.29031451,600.6,598.87,0.976]
[1745524490383,0.29031451,600.6,598.88,1.405]
[1745524491483,1.27438481,600.55,598.88,1.405]
[1745524492081,0.2903242,600.54,598.88,1.405]
[1745524493884,1.27438481,600.52,598.88,1.405]
[1745524496785,0.2903242,600.54,598.88,1.405]
[1745524497685,1.27438481,600.72,598.88,1.405]
[1745524497984,0.29030603,600.53,598.88,1.405]
[1745524498285,1.27438481,600.72,598.88,1.405]
[1745524499482,2.16822415,600.88,598.88,1.405]
[1745524499483,1.27438481,600.73,598.88,1.405]
[1745524499987,0.29030482,600.72,598.88,1.405]
[1745524503789,1.27438481,600.73,598.88,1.405]
[1745524504090,0.29029755,600.71,598.88,1.405]
[1745524504291,1.56468236,600.71,598.88,1.405]
[1745524506691,1.27438481,600.71,598.88,1.405]
[1745524506887,1.27438481,600.45,598.88,1.405]
[1745524508291,1.27438481,600.45,598.89,1.183]
[1745524510098,1.27438481,600.38,598.89,1.183]
[1745524512096,1.27438481,600.32,598.89,1.183]
[1745524513094,0.29035326,600.31,598.89,1.183]
[1745524514999,1.56473807,600.31,598.89,1.183]
[1745524515200,1.56473807,600.31,598.9,1.215]
[1745524515901,1.27438481,600.31,598.9,1.215]
[1745524517101,2.16822415,600.9,598.9,1.215]
[1745524517102,0.29035326,600.3,598.9,1.215]
[1745524518703,1.27438481,600.91,598.9,1.215]
[1745524519102,0.2902806,600.9,598.9,1.215]
[1745524519903,1.56466541,600.9,598.9,1.215]
[1745524521709,1.27438481,600.9,598.9,1.215]
[1745524522309,0.29028182,600.89,598.9,1.215]
[1745524522508,0.29028182,600.89,598.9,2.43]
[1745524524806,1.27438481,600.9,598.9,2.43]
[1745524525209,0.29028182,600.88,598.9,2.43]
[1745524525406,0.29028182,600.88,598.9,3.554]
[1745524526013,1.27438481,600.43,598.9,3.554]
[1745524528110,0.29033873,600.42,598.9,3.554]
[1745524528916,1.27438481,600.39,598.9,3.554]
[1745524531223,0.29032904,600.38,598.9,3.554]
[1745524532423,1.56471385,600.38,598.9,3.554]
[1745524533920,1.27438481,600.38,598.9,3.554]
[1745524534122,0.29032298,600.37,598.9,3.554]
[1745524536726,1.27438481,600.57,598.9,3.554]
[1745524537127,0.29029998,600.56,598.9,3.554]
[1745524538326,0.29029998,600.56,598.9,4.834]
[1745524538525,1.27438481,600.44,598.9,4.834]
[1745524541130,0.29031572,600.43,598.9,4.834]
[1745524542829,1.27438481,600.45,598.9,4.834]
[1745524543124,0.29031451,600.42,598.9,4.834]
[1745524543629,0.29031451,600.42,598.91,0.30648182]
[1745524544230,1.56469932,600.42,598.9,3.619]
[1745524544431,1.56469932,600.42,598.9,2.495]
[1745524545832,1.27438481,600.42,598.9,2.495]
[1745524546132,0.29031814,600.41,598.9,2.495]
[1745524547526,0.29031814,600.41,598.9,3.789]
[1745524548235,0.29031814,600.41,598.9,5.146]
[1745524548633,1.27438481,600.43,598.9,5.146]
[1745524548833,0.29031693,600.4,598.9,5.146]
[1745524549528,0.29031693,600.4,598.91,0.3064824]
[1745524551337,0.29031693,600.4,598.9,5.146]
[1745524551537,0.29031693,600.4,598.91,0.30648203]
[1745524554739,1.27438481,600.44,598.91,0.30648203]
[1745524555040,0.29031572,600.39,598.91,0.30648203]
[1745524555838,0.29031572,600.39,598.9,5.146]
[1745524556042,0.29031572,600.39,598.91,0.30648231]
[1745524556545,1.27438481,600.34,598.91,0.30648231]
[1745524558946,0.61321832,605.42,598.91,0.30648231]
[1745524558947,1.27438481,600.32,598.91,0.30648231]
[1745524559144,1.27438481,600.32,598.9,3.852]
[1745524559343,1.27438481,600.32,598.91,0.30648202]
[1745524561146,0.29033025,600.31,598.91,0.30648202]
[1745524561347,1.27438481,600.3,598.91,0.30648202]
[1745524561846,1.27438481,600.3,598.91,0.932]
[1745524563751,1.27438481,600.38,598.92,0.30648057]
[1745524564050,1.27438481,600.38,598.91,0.932]
[1745524564749,1.27438481,600.38,598.91,2.184]
[1745524565147,1.27438481,600.38,598.92,0.30648086]
[1745524566353,1.27438481,600.38,598.91,2.184]
[1745524566547,1.27438481,600.38,598.92,0.3064795]
[1745524567255,1.27438481,600.38,598.91,2.184]
[1745524567756,1.27438481,600.31,598.91,2.184]
[1745524570458,2.16822415,601.13,598.91,2.184]
[1745524570459,1.27438481,600.72,598.91,2.184]
[1745524573061,1.27438481,600.77,598.91,2.184]
[1745524575063,1.27438481,600.79,598.91,2.184]
[1745524575863,1.27438481,600.79,598.92,0.30643051]
[1745524577660,1.27438481,600.79,598.92,0.982]
[1745524577865,1.27438481,600.79,598.93,0.30642086]
[1745524578567,1.27438481,600.63,598.93,0.30642086]
[1745524579165,1.27438481,600.63,598.92,0.982]
[1745524579367,1.27438481,600.63,598.93,0.30642154]
[1745524580664,1.27438481,600.63,598.92,0.982]
[1745524580869,1.27438481,600.63,598.93,0.30642115]
[1745524581068,0.2902685,600.62,598.93,0.30642115]
[1745524581269,1.27438481,600.61,598.93,0.30642115]
[1745524582170,0.29027092,600.6,598.93,0.30642115]
[1745524583873,1.27438481,600.55,598.93,0.30642115]
[1745524585168,0.29027818,600.54,598.93,0.30642115]
[1745524585472,0.29027818,600.54,598.92,0.982]
[1745524585672,0.29027818,600.54,598.93,0.30642253]
[1745524587075,0.29027818,600.54,598.92,0.982]
[1745524587276,1.27438481,600.49,598.93,0.30642282]
[1745524588176,0.29028545,600.48,598.93,0.30642282]
[1745524589777,0.29028545,600.48,598.93,1.44242282]
[1745524589980,0.29028545,600.48,598.94,0.30642282]
[1745524592280,1.27438481,600.42,598.94,0.30642282]
[1745524593080,1.27438481,600.42,598.95,1.4]
[1745524593281,1.27438481,600.42,598.96,0.30642282]
[1745524594181,0.29029029,600.41,598.96,0.30642282]
[1745524594383,1.5646751,600.41,598.96,0.30642282]
[1745524595782,1.5646751,600.41,598.97,1.186]
[1745524595983,1.5646751,600.41,598.98,0.30642282]
[1745524596782,1.27438481,600.41,598.97,1.186]
[1745524596984,1.27438481,600.41,598.99,0.30642163]
[1745524597180,1.27438481,600.56,599.0,0.30642163]
[1745524597381,1.27438481,600.56,599.01,0.30642163]
[1745524597578,1.27438481,600.56,598.98,0.30642163]
[1745524597785,1.27438481,600.56,598.97,1.186]
[1745524597983,1.27438481,600.56,598.98,0.30642221]
[1745524598182,0.29027092,600.55,598.98,0.30642221]
[1745524599779,1.27438481,600.53,598.98,0.30642221]
[1745524600180,0.29027455,600.52,598.98,0.30642221]
[1745524602085,0.29027455,600.52,598.97,1.186]
[1745524602681,0.29027455,600.52,598.98,0.3064271]
[1745524603382,0.29027455,600.52,598.97,1.186]
[1745524603587,0.29027455,600.52,598.98,0.30641963]
[1745524605790,1.27438481,600.57,598.98,0.30641963]
[1745524606184,0.29026971,600.51,598.98,0.30641963]
[1745524606684,0.29026971,600.51,598.99,0.30641886]
[1745524606888,1.27438481,600.44,598.98,0.30641886]
[1745524607189,1.27438481,600.44,598.99,0.30641886]
[1745524607389,1.27438481,600.44,598.98,0.30641886]
[1745524607586,1.27438481,600.44,598.99,0.30641886]
[1745524607788,1.27438481,600.44,598.98,0.30641886]
[1745524607985,1.27438481,600.44,598.99,0.30641886]
[1745524608184,1.27438481,600.44,598.98,0.30641886]
[1745524608387,1.27438481,600.44,598.99,0.30641886]
[1745524608590,1.27438481,600.44,599.0,0.30641886]
[1745524608787,1.27438481,600.38,598.98,0.30641886]
[1745524608987,1.27438481,600.38,598.99,0.30641886]
[1745524609188,1.27438481,600.38,598.99,0.937]
[1745524609392,1.27438481,600.38,599.0,0.30641886]
[1745524609793,1.27438481,600.38,598.99,0.937]
[1745524609991,1.27438481,600.38,599.0,0.3064219]
[1745524611994,1.27438481,600.41,599.0,0.3064219]
[1745524612191,0.29028787,600.37,599.0,0.3064219]
[1745524612389,1.27438481,600.41,598.99,0.937]
[1745524613189,0.29027939,600.4,598.99,0.937]
[1745524613494,0.29027939,600.4,599.0,1.508]
[1745524614795,1.27438481,600.41,599.0,1.508]
[1745524614995,1.27438481,600.79,599.0,1.508]
[1745524615190,0.29027818,600.39,599.0,1.508]
[1745524615391,1.27438481,600.79,599.0,1.508]
[1745524616197,0.29023219,600.78,599.0,1.508]
[1745524616392,0.29023219,600.78,599.01,1.355]
[1745524617797,1.27438481,600.79,599.01,1.355]
[1745524618399,1.27438481,600.8,599.01,1.355]
[1745524619099,0.29024671,600.79,599.01,1.355]
[1745524623803,1.27438481,601.17,599.01,1.355]
[1745524624101,0.29022129,600.78,599.01,1.355]
[1745524624403,1.27438481,601.17,599.01,1.355]
[1745524625103,0.29022129,601.16,599.01,1.355]
[1745524626803,1.27438481,601.17,599.01,1.355]